[Event "Titled Tuesday Blitz January 04 2022"]
[White "Deac, Bogdan-Daniel"]
[Black "Nepomniachtchi, Ian"]
[WhiteFideId "1226380"]
[BlackFideId "4168119"]
[WhiteElo "2646"]
[BlackElo "2740"]
[Result "1/2-1/2"]
[Round "11"]
[TimeControl "180+1"]
[Date "2022.01.04"]
[WhiteClock "0:00:06"]
[BlackClock "0:00:10"]

1. e4 {[%clk 0:03:00]}  e5 {[%clk 0:03:00]} 2. Nf3 {[%clk 0:03:00]}  Nc6 {[%clk 0:03:00]} 3. Bb5 {[%clk 0:03:00]}  a6 {[%clk 0:03:00]} 4. Ba4 {[%clk 0:03:00]}  Nf6 {[%clk 0:03:01]} 5. O-O {[%clk 0:03:00]}  Be7 {[%clk 0:03:01]} 6. Re1 {[%clk 0:03:00]}  b5 {[%clk 0:03:01]} 7. Bb3 {[%clk 0:03:00]}  O-O {[%clk 0:03:02]} 8. c3 {[%clk 0:03:00]}  d5 {[%clk 0:03:02]} 9. exd5 {[%clk 0:03:01]}  Nxd5 {[%clk 0:03:03]} 10. Nxe5 {[%clk 0:03:01]}  Nxe5 {[%clk 0:03:04]} 11. Rxe5 {[%clk 0:03:02]}  c6 {[%clk 0:03:04]} 12. d3 {[%clk 0:03:02]}  Bf6 {[%clk 0:03:04]} 13. Re1 {[%clk 0:02:58]}  a5 {[%clk 0:03:05]} 14. a3 {[%clk 0:02:53]}  Bf5 {[%clk 0:03:01]} 15. Bc2 {[%clk 0:02:39]}  Qd7 {[%clk 0:02:59]} 16. Nd2 {[%clk 0:02:33]}  Bg4 {[%clk 0:02:26]} 17. f3 {[%clk 0:02:27]}  Bh5 {[%clk 0:01:57]} 18. Ne4 {[%clk 0:02:25]}  Be5 {[%clk 0:01:58]} 19. d4 {[%clk 0:01:09]}  Bc7 {[%clk 0:01:57]} 20. Bg5 {[%clk 0:01:03]}  Rae8 {[%clk 0:01:56]} 21. Qd2 {[%clk 0:00:59]}  h6 {[%clk 0:01:55]} 22. Bh4 {[%clk 0:00:58]}  Bf4 {[%clk 0:01:55]} 23. Qd3 {[%clk 0:00:46]}  Bg6 {[%clk 0:01:50]} 24. Bg3 {[%clk 0:00:43]}  Qc7 {[%clk 0:01:44]} 25. Bxf4 {[%clk 0:00:36]}  Qxf4 {[%clk 0:01:42]} 26. g3 {[%clk 0:00:20]}  Qc7 {[%clk 0:01:42]} 27. Qd2 {[%clk 0:00:20]}  Bh5 {[%clk 0:01:38]} 28. f4 {[%clk 0:00:19]}  Re7 {[%clk 0:01:32]} 29. Nc5 {[%clk 0:00:19]}  Rfe8 {[%clk 0:01:32]} 30. Be4 {[%clk 0:00:18]}  Nb6 {[%clk 0:01:24]} 31. Qf2 {[%clk 0:00:14]}  a4 {[%clk 0:01:20]} 32. Bd3 {[%clk 0:00:14]}  Nc4 {[%clk 0:01:15]} 33. h3 {[%clk 0:00:11]}  Qc8 {[%clk 0:01:12]} 34. Kh2 {[%clk 0:00:06]}  Ne3 {[%clk 0:01:12]} 35. Ne4 {[%clk 0:00:04]}  Nd1 {[%clk 0:00:25]} 36. Qg2 {[%clk 0:00:04]}  Qc7 {[%clk 0:00:22]} 37. Raxd1 {[%clk 0:00:03]}  Bxd1 {[%clk 0:00:17]} 38. Rxd1 {[%clk 0:00:04]}  f5 {[%clk 0:00:18]} 39. Nc5 {[%clk 0:00:04]}  Re3 {[%clk 0:00:18]} 40. Qf2 {[%clk 0:00:04]}  g5 {[%clk 0:00:16]} 41. Rd2 {[%clk 0:00:05]}  h5 {[%clk 0:00:15]} 42. Bxf5 {[%clk 0:00:04]}  h4 {[%clk 0:00:15]} 43. gxh4 {[%clk 0:00:04]}  gxf4 {[%clk 0:00:15]} 44. Ne6 {[%clk 0:00:04]}  R8xe6 {[%clk 0:00:08]} 45. Bxe6+ {[%clk 0:00:05]}  Rxe6 {[%clk 0:00:09]} 46. Qf3 {[%clk 0:00:05]}  Re3 {[%clk 0:00:08]} 47. Qg4+ {[%clk 0:00:05]}  Kf8 {[%clk 0:00:08]} 48. Qf5+ {[%clk 0:00:05]}  Ke8 {[%clk 0:00:07]} 49. Kg1 {[%clk 0:00:04]}  Qg7+ {[%clk 0:00:07]} 50. Kf1 {[%clk 0:00:04]}  Qg3 {[%clk 0:00:07]} 51. Qc8+ {[%clk 0:00:03]}  Ke7 {[%clk 0:00:07]} 52. Qc7+ {[%clk 0:00:04]}  Kf8 {[%clk 0:00:08]} 53. Qc8+ {[%clk 0:00:04]}  Kf7 {[%clk 0:00:08]} 54. Qf5+ {[%clk 0:00:04]}  Ke8 {[%clk 0:00:08]} 55. Qc8+ {[%clk 0:00:05]}  Ke7 {[%clk 0:00:08]} 56. Qc7+ {[%clk 0:00:05]}  Kf8 {[%clk 0:00:09]} 57. Qc8+ {[%clk 0:00:05]}  Kf7 {[%clk 0:00:09]} 58. Qf5+ {[%clk 0:00:06]}  Ke8 {[%clk 0:00:10]} 1/2-1/2


[Site "https://www.chess.com"]

[Event "Titled Tuesday Blitz January 04 2022"]
[White "Demchenko, Anton"]
[Black "Svane, Rasmus"]
[WhiteFideId "4160258"]
[BlackFideId "4657101"]
[WhiteElo "2539"]
[BlackElo "2645"]
[Result "0-1"]
[Round "11"]
[TimeControl "180+1"]
[Date "2022.01.04"]
[WhiteClock "0:00:06"]
[BlackClock "0:00:07"]

1. e4 {[%clk 0:03:00]}  e5 {[%clk 0:02:58]} 2. Nf3 {[%clk 0:03:01]}  Nc6 {[%clk 0:02:59]} 3. Bc4 {[%clk 0:03:01]}  Bc5 {[%clk 0:02:59]} 4. d3 {[%clk 0:03:01]}  Nf6 {[%clk 0:02:59]} 5. Bg5 {[%clk 0:03:02]}  h6 {[%clk 0:02:59]} 6. Bh4 {[%clk 0:03:02]}  Be7 {[%clk 0:02:59]} 7. Bg3 {[%clk 0:03:01]}  d6 {[%clk 0:03:00]} 8. a4 {[%clk 0:03:02]}  O-O {[%clk 0:02:57]} 9. h3 {[%clk 0:03:02]}  g6 {[%clk 0:02:53]} 10. Nc3 {[%clk 0:03:02]}  Nh5 {[%clk 0:02:52]} 11. Bh2 {[%clk 0:02:58]}  Bg5 {[%clk 0:02:52]} 12. Nd5 {[%clk 0:02:54]}  Ne7 {[%clk 0:02:47]} 13. g4 {[%clk 0:02:47]}  Nf4 {[%clk 0:02:21]} 14. Bxf4 {[%clk 0:02:14]}  Bxf4 {[%clk 0:02:15]} 15. Nxf4 {[%clk 0:02:12]}  exf4 {[%clk 0:02:16]} 16. Qd2 {[%clk 0:01:48]}  g5 {[%clk 0:02:05]} 17. O-O-O {[%clk 0:01:46]}  Ng6 {[%clk 0:02:02]} 18. d4 {[%clk 0:01:45]}  Bd7 {[%clk 0:01:53]} 19. Rdg1 {[%clk 0:01:39]}  Qe7 {[%clk 0:01:33]} 20. Bd3 {[%clk 0:01:30]}  Bc6 {[%clk 0:01:14]} 21. Re1 {[%clk 0:00:34]}  Rae8 {[%clk 0:01:02]} 22. h4 {[%clk 0:00:33]}  gxh4 {[%clk 0:00:58]} 23. b3 {[%clk 0:00:27]}  Qf6 {[%clk 0:00:52]} 24. Rhg1 {[%clk 0:00:23]}  Qg7 {[%clk 0:00:44]} 25. g5 {[%clk 0:00:23]}  h5 {[%clk 0:00:44]} 26. Rh1 {[%clk 0:00:24]}  Re7 {[%clk 0:00:42]} 27. Nxh4 {[%clk 0:00:14]}  Qxd4 {[%clk 0:00:19]} 28. c3 {[%clk 0:00:13]}  Qc5 {[%clk 0:00:19]} 29. Nf5 {[%clk 0:00:14]}  Qa3+ {[%clk 0:00:16]} 30. Qb2 {[%clk 0:00:12]}  Qxb2+ {[%clk 0:00:16]} 31. Kxb2 {[%clk 0:00:13]}  Re5 {[%clk 0:00:16]} 32. Rxh5 {[%clk 0:00:12]}  Rfe8 {[%clk 0:00:15]} 33. Nh6+ {[%clk 0:00:07]}  Kg7 {[%clk 0:00:15]} 34. f3 {[%clk 0:00:08]}  d5 {[%clk 0:00:13]} 35. Reh1 {[%clk 0:00:02]}  dxe4 {[%clk 0:00:13]} 36. fxe4 {[%clk 0:00:02]}  Bxe4 {[%clk 0:00:13]} 37. Bxe4 {[%clk 0:00:03]}  Rxe4 {[%clk 0:00:14]} 38. Nf5+ {[%clk 0:00:03]}  Kg8 {[%clk 0:00:15]} 39. Nh6+ {[%clk 0:00:04]}  Kf8 {[%clk 0:00:14]} 40. Nf5 {[%clk 0:00:04]}  Re2+ {[%clk 0:00:09]} 41. Ka3 {[%clk 0:00:05]}  f6 {[%clk 0:00:07]} 42. gxf6 {[%clk 0:00:05]}  Kf7 {[%clk 0:00:08]} 43. Rh6 {[%clk 0:00:03]}  Rg2 {[%clk 0:00:06]} 44. Nd4 {[%clk 0:00:02]}  c5 {[%clk 0:00:05]} 45. Nb5 {[%clk 0:00:02]}  Ree2 {[%clk 0:00:05]} 46. b4 {[%clk 0:00:01]}  c4 {[%clk 0:00:05]} 47. Nd6+ {[%clk 0:00:01]}  Kxf6 {[%clk 0:00:05]} 48. Nxc4 {[%clk 0:00:02]}  f3 {[%clk 0:00:04]} 49. R1h3 {[%clk 0:00:02]}  f2 {[%clk 0:00:04]} 50. Rf3+ {[%clk 0:00:03]}  Kg5 {[%clk 0:00:05]} 51. Rh7 {[%clk 0:00:03]}  Nh4 {[%clk 0:00:04]} 52. Rff7 {[%clk 0:00:02]}  Nf5 {[%clk 0:00:05]} 53. Rhg7+ {[%clk 0:00:02]}  Nxg7 {[%clk 0:00:05]} 54. Rxg7+ {[%clk 0:00:03]}  Kf6 {[%clk 0:00:05]} 55. Rxg2 {[%clk 0:00:02]}  f1=Q {[%clk 0:00:06]} 56. Rxe2 {[%clk 0:00:01]}  Qxe2 {[%clk 0:00:07]} 57. Kb3 {[%clk 0:00:02]}  Qd1+ {[%clk 0:00:07]} 58. Kb2 {[%clk 0:00:03]}  Ke6 {[%clk 0:00:08]} 59. a5 {[%clk 0:00:02]}  Qa4 {[%clk 0:00:08]} 60. Na3 {[%clk 0:00:02]}  b6 {[%clk 0:00:08]} 61. axb6 {[%clk 0:00:02]}  axb6 {[%clk 0:00:08]} 62. Nc2 {[%clk 0:00:03]}  Qd7 {[%clk 0:00:08]} 63. Nd4+ {[%clk 0:00:04]}  Kd5 {[%clk 0:00:09]} 64. Kb3 {[%clk 0:00:04]}  Qf7 {[%clk 0:00:09]} 65. Nc2 {[%clk 0:00:03]}  Ke4+ {[%clk 0:00:09]} 66. Kb2 {[%clk 0:00:04]}  Kd3 {[%clk 0:00:10]} 67. Na3 {[%clk 0:00:05]}  Qf2+ {[%clk 0:00:09]} 68. Kb3 {[%clk 0:00:05]}  Qd2 {[%clk 0:00:10]} 69. Nb5 {[%clk 0:00:05]}  Qc2+ {[%clk 0:00:09]} 70. Ka3 {[%clk 0:00:05]}  Kc4 {[%clk 0:00:08]} 71. Nd6+ {[%clk 0:00:05]}  Kxc3 {[%clk 0:00:08]} 72. Nb5+ {[%clk 0:00:06]}  Kc4 {[%clk 0:00:08]} 73. Nd6+ {[%clk 0:00:06]}  Kd5 {[%clk 0:00:08]} 74. Nb5 {[%clk 0:00:06]}  Qd3+ {[%clk 0:00:07]} 75. Ka4 {[%clk 0:00:07]}  Kc6 {[%clk 0:00:07]} 76. Na7+ {[%clk 0:00:06]}  Kb7 {[%clk 0:00:07]} 77. Nb5 {[%clk 0:00:06]}  Qc2+ {[%clk 0:00:07]} 78. Ka3 {[%clk 0:00:07]}  Qf2 {[%clk 0:00:07]} 79. Kb3 {[%clk 0:00:06]}  Kc6 {[%clk 0:00:07]} 80. Nc3 {[%clk 0:00:06]}  b5 {[%clk 0:00:07]} 0-1


[Site "https://www.chess.com"]

[Event "Titled Tuesday Blitz January 04 2022"]
[White "Djordjevic, Vuk"]
[Black "Omelja, Artem"]
[WhiteFideId "902098"]
[BlackFideId "14119846"]
[WhiteElo "2463"]
[BlackElo "2418"]
[Result "1-0"]
[Round "11"]
[TimeControl "180+1"]
[Date "2022.01.04"]
[WhiteClock "0:00:12"]
[BlackClock "0:00:12"]

1. e4 {[%clk 0:03:00]}  c5 {[%clk 0:02:59]} 2. g3 {[%clk 0:03:00]}  Nc6 {[%clk 0:02:55]} 3. Bg2 {[%clk 0:03:00]}  Nf6 {[%clk 0:02:52]} 4. Ne2 {[%clk 0:03:01]}  d6 {[%clk 0:02:52]} 5. O-O {[%clk 0:03:01]}  g6 {[%clk 0:02:52]} 6. c3 {[%clk 0:03:01]}  Bg7 {[%clk 0:02:52]} 7. d4 {[%clk 0:03:02]}  cxd4 {[%clk 0:02:52]} 8. cxd4 {[%clk 0:03:03]}  O-O {[%clk 0:02:52]} 9. Nbc3 {[%clk 0:03:03]}  Bg4 {[%clk 0:02:50]} 10. Be3 {[%clk 0:03:01]}  Rc8 {[%clk 0:02:49]} 11. d5 {[%clk 0:02:59]}  Ne5 {[%clk 0:02:45]} 12. Bxa7 {[%clk 0:02:59]}  Nc4 {[%clk 0:02:37]} 13. Rb1 {[%clk 0:02:50]}  b6 {[%clk 0:02:34]} 14. h3 {[%clk 0:02:49]}  Bxe2 {[%clk 0:02:20]} 15. Qxe2 {[%clk 0:02:49]}  Qd7 {[%clk 0:02:08]} 16. b3 {[%clk 0:02:49]}  Na3 {[%clk 0:02:06]} 17. Bxb6 {[%clk 0:02:47]}  Rxc3 {[%clk 0:01:58]} 18. Rbc1 {[%clk 0:02:48]}  Rfc8 {[%clk 0:01:48]} 19. Rxc3 {[%clk 0:02:47]}  Rxc3 {[%clk 0:01:49]} 20. Qb2 {[%clk 0:02:48]}  Nb5 {[%clk 0:01:17]} 21. a4 {[%clk 0:02:48]}  Nxe4 {[%clk 0:01:17]} 22. axb5 {[%clk 0:02:33]}  Qxb5 {[%clk 0:01:13]} 23. Be3 {[%clk 0:02:27]}  Rxe3 {[%clk 0:01:08]} 24. Qc2 {[%clk 0:02:04]}  Re2 {[%clk 0:00:59]} 25. Qc8+ {[%clk 0:02:03]}  Bf8 {[%clk 0:00:57]} 26. Bf3 {[%clk 0:01:47]}  Rxf2 {[%clk 0:00:23]} 27. Rxf2 {[%clk 0:01:44]}  Nxf2 {[%clk 0:00:24]} 28. Kxf2 {[%clk 0:01:44]}  Qxb3 {[%clk 0:00:24]} 29. h4 {[%clk 0:01:40]}  h5 {[%clk 0:00:22]} 30. Be4 {[%clk 0:01:29]}  Qb2+ {[%clk 0:00:21]} 31. Kf3 {[%clk 0:01:29]}  Qf6+ {[%clk 0:00:20]} 32. Kg2 {[%clk 0:01:29]}  Kg7 {[%clk 0:00:21]} 33. Qb7 {[%clk 0:01:23]}  Qe5 {[%clk 0:00:20]} 34. Bf3 {[%clk 0:01:23]}  Kg8 {[%clk 0:00:19]} 35. Qa8 {[%clk 0:01:21]}  Kg7 {[%clk 0:00:18]} 36. Qa7 {[%clk 0:01:19]}  e6 {[%clk 0:00:15]} 37. dxe6 {[%clk 0:01:10]}  Qxe6 {[%clk 0:00:16]} 38. Qb7 {[%clk 0:01:04]}  Be7 {[%clk 0:00:15]} 39. Bd5 {[%clk 0:01:03]}  Qe2+ {[%clk 0:00:14]} 40. Kh3 {[%clk 0:00:59]}  Qf1+ {[%clk 0:00:13]} 41. Kh2 {[%clk 0:00:58]}  Qf6 {[%clk 0:00:14]} 42. Kg2 {[%clk 0:00:55]}  Bd8 {[%clk 0:00:14]} 43. Qb4 {[%clk 0:00:51]}  Qe7 {[%clk 0:00:13]} 44. Qb5 {[%clk 0:00:41]}  Qf6 {[%clk 0:00:11]} 45. Qb4 {[%clk 0:00:40]}  Be7 {[%clk 0:00:11]} 46. Qb3 {[%clk 0:00:38]}  Qf5 {[%clk 0:00:08]} 47. Qc4 {[%clk 0:00:26]}  Qe5 {[%clk 0:00:09]} 48. Bxf7 {[%clk 0:00:26]}  Qf6 {[%clk 0:00:09]} 49. Bd5 {[%clk 0:00:25]}  Qe5 {[%clk 0:00:09]} 50. Qb3 {[%clk 0:00:24]}  g5 {[%clk 0:00:08]} 51. Qf3 {[%clk 0:00:19]}  gxh4 {[%clk 0:00:04]} 52. gxh4 {[%clk 0:00:12]}  Bxh4 {[%clk 0:00:03]} 53. Qf7+ {[%clk 0:00:12]}  Kh6 {[%clk 0:00:04]} 54. Bf3 {[%clk 0:00:07]}  Qg3+ {[%clk 0:00:03]} 55. Kh1 {[%clk 0:00:07]}  Qe1+ {[%clk 0:00:03]} 56. Kg2 {[%clk 0:00:07]}  Qf2+ {[%clk 0:00:04]} 57. Kh1 {[%clk 0:00:07]}  Qf1+ {[%clk 0:00:04]} 58. Kh2 {[%clk 0:00:07]}  Qf2+ {[%clk 0:00:04]} 59. Kh1 {[%clk 0:00:07]}  Qe1+ {[%clk 0:00:03]} 60. Kg2 {[%clk 0:00:07]}  Qe5 {[%clk 0:00:04]} 61. Qf8+ {[%clk 0:00:05]}  Kg5 {[%clk 0:00:02]} 62. Qg8+ {[%clk 0:00:05]}  Kf4 {[%clk 0:00:02]} 63. Qf7+ {[%clk 0:00:05]}  Ke3 {[%clk 0:00:02]} 64. Qb3+ {[%clk 0:00:06]}  Kf4 {[%clk 0:00:02]} 65. Qc4+ {[%clk 0:00:06]}  Kf5 {[%clk 0:00:02]} 66. Qd3+ {[%clk 0:00:04]}  Kf6 {[%clk 0:00:02]} 67. Qh7 {[%clk 0:00:05]}  Qg5+ {[%clk 0:00:02]} 68. Kf1 {[%clk 0:00:05]}  Qc1+ {[%clk 0:00:02]} 69. Kg2 {[%clk 0:00:06]}  Qg5+ {[%clk 0:00:02]} 70. Kf1 {[%clk 0:00:06]}  Ke5 {[%clk 0:00:03]} 71. Qe4+ {[%clk 0:00:05]}  Kf6 {[%clk 0:00:03]} 72. Qe8 {[%clk 0:00:06]}  Qg7 {[%clk 0:00:03]} 73. Qxh5 {[%clk 0:00:05]}  Bg5 {[%clk 0:00:03]} 74. Qg4 {[%clk 0:00:05]}  Qd7 {[%clk 0:00:03]} 75. Qxd7 {[%clk 0:00:05]}  Ke5 {[%clk 0:00:03]} 76. Bg4 {[%clk 0:00:06]}  Kd4 {[%clk 0:00:04]} 77. Qe6 {[%clk 0:00:06]}  Bf4 {[%clk 0:00:04]} 78. Bf5 {[%clk 0:00:07]}  Be5 {[%clk 0:00:05]} 79. Qg6 {[%clk 0:00:07]}  Ke3 {[%clk 0:00:06]} 80. Qg4 {[%clk 0:00:07]}  Kd2 {[%clk 0:00:06]} 81. Qe2+ {[%clk 0:00:08]}  Kc3 {[%clk 0:00:07]} 82. Qd3+ {[%clk 0:00:08]}  Kb4 {[%clk 0:00:08]} 83. Be6 {[%clk 0:00:09]}  Kc5 {[%clk 0:00:09]} 84. Qd5+ {[%clk 0:00:09]}  Kb6 {[%clk 0:00:10]} 85. Ke2 {[%clk 0:00:10]}  Kc7 {[%clk 0:00:09]} 86. Kd3 {[%clk 0:00:10]}  Kd8 {[%clk 0:00:10]} 87. Bf5 {[%clk 0:00:11]}  Ke8 {[%clk 0:00:11]} 88. Qe6+ {[%clk 0:00:11]}  Kf8 {[%clk 0:00:12]} 89. Bg6 {[%clk 0:00:11]}  Kg7 {[%clk 0:00:12]} 90. Be8 {[%clk 0:00:12]}  Kf8 {[%clk 0:00:12]} 91. Qf7# {[%clk 0:00:12]} 1-0


[Site "https://www.chess.com"]

[Event "Titled Tuesday Blitz January 04 2022"]
[White "Drozdowski, Kacper"]
[Black "Lorparizangeneh, Shahin"]
[WhiteFideId "1136720"]
[BlackFideId "12521604"]
[WhiteElo "2507"]
[BlackElo "2525"]
[Result "1-0"]
[Round "11"]
[TimeControl "180+1"]
[Date "2022.01.04"]
[WhiteClock "0:01:59"]
[BlackClock "0:00:13"]

1. e4 {[%clk 0:03:00]}  c5 {[%clk 0:02:40]} 2. Nf3 {[%clk 0:03:00]}  d6 {[%clk 0:02:41]} 3. d4 {[%clk 0:03:01]}  cxd4 {[%clk 0:02:42]} 4. Nxd4 {[%clk 0:03:02]}  Nf6 {[%clk 0:02:42]} 5. f3 {[%clk 0:03:02]}  e5 {[%clk 0:02:42]} 6. Nb3 {[%clk 0:03:02]}  d5 {[%clk 0:02:38]} 7. Bg5 {[%clk 0:03:01]}  Be6 {[%clk 0:02:35]} 8. Bxf6 {[%clk 0:03:00]}  gxf6 {[%clk 0:02:35]} 9. exd5 {[%clk 0:03:01]}  Qxd5 {[%clk 0:02:35]} 10. Qxd5 {[%clk 0:03:00]}  Bxd5 {[%clk 0:02:36]} 11. Nc3 {[%clk 0:03:00]}  Be6 {[%clk 0:02:35]} 12. O-O-O {[%clk 0:02:59]}  Nc6 {[%clk 0:02:27]} 13. Bb5 {[%clk 0:02:57]}  Rc8 {[%clk 0:02:17]} 14. Na5 {[%clk 0:02:51]}  a6 {[%clk 0:02:13]} 15. Nxc6 {[%clk 0:02:49]}  axb5 {[%clk 0:01:30]} 16. Na7 {[%clk 0:02:49]}  Rc5 {[%clk 0:01:19]} 17. Naxb5 {[%clk 0:02:49]}  Bxa2 {[%clk 0:01:17]} 18. b3 {[%clk 0:02:40]}  Rg8 {[%clk 0:01:03]} 19. g3 {[%clk 0:02:35]}  Ke7 {[%clk 0:00:48]} 20. Kb2 {[%clk 0:02:33]}  Bxb3 {[%clk 0:00:39]} 21. cxb3 {[%clk 0:02:34]}  Bg7 {[%clk 0:00:38]} 22. Nd6 {[%clk 0:02:24]}  Ke6 {[%clk 0:00:34]} 23. Nxb7 {[%clk 0:02:22]}  Rc7 {[%clk 0:00:31]} 24. Nd6 {[%clk 0:02:13]}  f5 {[%clk 0:00:29]} 25. Nc4 {[%clk 0:02:11]}  Rb8 {[%clk 0:00:26]} 26. Kc2 {[%clk 0:02:11]}  Rcb7 {[%clk 0:00:22]} 27. Na4 {[%clk 0:02:06]}  Ke7 {[%clk 0:00:20]} 28. Rd3 {[%clk 0:02:00]}  e4 {[%clk 0:00:21]} 29. Re1 {[%clk 0:01:59]}  Kf8 {[%clk 0:00:13]} 30. fxe4 {[%clk 0:01:59]}  Re7 {[%clk 0:00:13]} 31. e5 {[%clk 0:01:59]} 1-0


[Site "https://www.chess.com"]

[Event "Titled Tuesday Blitz January 04 2022"]
[White "Firat, Burak"]
[Black "Vokhidov, Shamsiddin"]
[WhiteFideId "6305881"]
[BlackFideId "14204223"]
[WhiteElo "2419"]
[BlackElo "2611"]
[Result "1-0"]
[Round "11"]
[TimeControl "180+1"]
[Date "2022.01.04"]
[WhiteClock "0:00:21"]
[BlackClock "0:00:02"]

1. Nf3 {[%clk 0:03:00]}  d5 {[%clk 0:03:00]} 2. c4 {[%clk 0:03:00]}  d4 {[%clk 0:03:00]} 3. e3 {[%clk 0:02:59]}  Nc6 {[%clk 0:03:00]} 4. d3 {[%clk 0:02:55]}  e5 {[%clk 0:02:59]} 5. e4 {[%clk 0:02:53]}  f5 {[%clk 0:02:52]} 6. exf5 {[%clk 0:02:50]}  Bxf5 {[%clk 0:02:53]} 7. g3 {[%clk 0:02:50]}  Nf6 {[%clk 0:02:50]} 8. Bg2 {[%clk 0:02:47]}  Bb4+ {[%clk 0:02:49]} 9. Bd2 {[%clk 0:02:36]}  Qd6 {[%clk 0:02:19]} 10. a3 {[%clk 0:02:32]}  Bxd2+ {[%clk 0:02:16]} 11. Qxd2 {[%clk 0:02:31]}  e4 {[%clk 0:02:16]} 12. Nh4 {[%clk 0:02:29]}  Be6 {[%clk 0:02:11]} 13. dxe4 {[%clk 0:02:22]}  Bxc4 {[%clk 0:02:05]} 14. Nf5 {[%clk 0:02:22]}  Qd7 {[%clk 0:02:05]} 15. Qc2 {[%clk 0:02:08]}  Ne5 {[%clk 0:02:02]} 16. Nd2 {[%clk 0:01:59]}  Nd3+ {[%clk 0:02:00]} 17. Kf1 {[%clk 0:01:59]}  Ba6 {[%clk 0:01:59]} 18. Kg1 {[%clk 0:01:54]}  O-O {[%clk 0:01:57]} 19. Nc4 {[%clk 0:01:48]}  Nxf2 {[%clk 0:01:48]} 20. Kxf2 {[%clk 0:01:47]}  d3 {[%clk 0:01:48]} 21. Qb3 {[%clk 0:01:40]}  Nxe4+ {[%clk 0:01:38]} 22. Bxe4 {[%clk 0:01:41]}  Rxf5+ {[%clk 0:01:28]} 23. Kg2 {[%clk 0:01:41]}  Kh8 {[%clk 0:01:18]} 24. Qxd3 {[%clk 0:01:17]}  Qxd3 {[%clk 0:01:09]} 25. Bxd3 {[%clk 0:01:18]}  Rd5 {[%clk 0:01:10]} 26. Be2 {[%clk 0:01:11]}  Rd4 {[%clk 0:01:01]} 27. Rhd1 {[%clk 0:01:02]}  Re4 {[%clk 0:00:55]} 28. Bd3 {[%clk 0:01:00]}  Rxc4 {[%clk 0:00:55]} 29. Bxc4 {[%clk 0:01:00]}  Bxc4 {[%clk 0:00:55]} 30. Rac1 {[%clk 0:01:00]}  b5 {[%clk 0:00:51]} 31. Rd7 {[%clk 0:00:50]}  c6 {[%clk 0:00:51]} 32. Re1 {[%clk 0:00:50]}  Bd5+ {[%clk 0:00:46]} 33. Kh3 {[%clk 0:00:49]}  a5 {[%clk 0:00:43]} 34. b4 {[%clk 0:00:45]}  axb4 {[%clk 0:00:42]} 35. axb4 {[%clk 0:00:46]}  h6 {[%clk 0:00:39]} 36. Ree7 {[%clk 0:00:43]}  Ra4 {[%clk 0:00:35]} 37. Kg4 {[%clk 0:00:29]}  Rxb4+ {[%clk 0:00:33]} 38. Kf5 {[%clk 0:00:30]}  Rb2 {[%clk 0:00:20]} 39. Kg6 {[%clk 0:00:27]}  Rf2 {[%clk 0:00:15]} 40. Re8+ {[%clk 0:00:24]}  Bg8 {[%clk 0:00:13]} 41. Rdd8 {[%clk 0:00:24]}  Rf6+ {[%clk 0:00:11]} 42. Kh5 {[%clk 0:00:25]}  Kh7 {[%clk 0:00:08]} 43. Rxg8 {[%clk 0:00:24]}  Rf5+ {[%clk 0:00:06]} 44. Kg4 {[%clk 0:00:24]}  Rg5+ {[%clk 0:00:07]} 45. Kf3 {[%clk 0:00:25]}  b4 {[%clk 0:00:07]} 46. Rb8 {[%clk 0:00:22]}  c5 {[%clk 0:00:07]} 47. Rgc8 {[%clk 0:00:23]}  Rf5+ {[%clk 0:00:06]} 48. Kg4 {[%clk 0:00:22]}  Rg5+ {[%clk 0:00:06]} 49. Kh3 {[%clk 0:00:22]}  Rh5+ {[%clk 0:00:07]} 50. Kg2 {[%clk 0:00:22]}  Rd5 {[%clk 0:00:06]} 51. Rb5 {[%clk 0:00:22]}  Rd2+ {[%clk 0:00:05]} 52. Kh3 {[%clk 0:00:22]}  Rc2 {[%clk 0:00:02]} 53. Rcxc5 {[%clk 0:00:22]}  Rb2 {[%clk 0:00:02]} 54. Rc6 {[%clk 0:00:21]} 1-0


[Site "https://www.chess.com"]

[Event "Titled Tuesday Blitz January 04 2022"]
[White "Hakobyan, Aram"]
[Black "Sanal, Vahap"]
[WhiteFideId "13306677"]
[BlackFideId "6300545"]
[WhiteElo "2557"]
[BlackElo "2603"]
[Result "0-1"]
[Round "11"]
[TimeControl "180+1"]
[Date "2022.01.04"]
[WhiteClock "0:00:01"]
[BlackClock "0:00:40"]

1. d4 {[%clk 0:03:00]}  Nf6 {[%clk 0:02:57]} 2. Nf3 {[%clk 0:02:56]}  d5 {[%clk 0:02:57]} 3. c3 {[%clk 0:02:55]}  Bf5 {[%clk 0:02:53]} 4. Qb3 {[%clk 0:02:54]}  Qc8 {[%clk 0:02:53]} 5. c4 {[%clk 0:02:54]}  e6 {[%clk 0:02:51]} 6. cxd5 {[%clk 0:02:54]}  exd5 {[%clk 0:02:50]} 7. Nc3 {[%clk 0:02:54]}  c6 {[%clk 0:02:50]} 8. Bf4 {[%clk 0:02:55]}  Na6 {[%clk 0:02:48]} 9. Rc1 {[%clk 0:02:48]}  Be7 {[%clk 0:02:44]} 10. e3 {[%clk 0:02:46]}  Nc7 {[%clk 0:02:30]} 11. Be2 {[%clk 0:02:33]}  O-O {[%clk 0:02:28]} 12. O-O {[%clk 0:02:30]}  Ne6 {[%clk 0:02:27]} 13. Be5 {[%clk 0:02:29]}  Qd7 {[%clk 0:02:20]} 14. h3 {[%clk 0:02:29]}  h6 {[%clk 0:02:19]} 15. Bh2 {[%clk 0:02:28]}  Nd8 {[%clk 0:02:08]} 16. Ne5 {[%clk 0:02:21]}  Qe6 {[%clk 0:02:04]} 17. Na4 {[%clk 0:02:20]}  Bd6 {[%clk 0:02:02]} 18. Nc5 {[%clk 0:02:16]}  Qe7 {[%clk 0:02:02]} 19. Bd3 {[%clk 0:01:57]}  Bxd3 {[%clk 0:02:00]} 20. Qxd3 {[%clk 0:01:53]}  Ne8 {[%clk 0:01:54]} 21. Ned7 {[%clk 0:01:28]}  Bxh2+ {[%clk 0:01:45]} 22. Kxh2 {[%clk 0:01:29]}  b6 {[%clk 0:01:38]} 23. Nxf8 {[%clk 0:01:29]}  Qd6+ {[%clk 0:01:32]} 24. Kg1 {[%clk 0:00:43]}  bxc5 {[%clk 0:01:33]} 25. Qh7+ {[%clk 0:00:31]}  Kxf8 {[%clk 0:01:33]} 26. e4 {[%clk 0:00:22]}  cxd4 {[%clk 0:01:24]} 27. exd5 {[%clk 0:00:23]}  Qxd5 {[%clk 0:01:21]} 28. Rce1 {[%clk 0:00:17]}  Ne6 {[%clk 0:01:20]} 29. f4 {[%clk 0:00:18]}  c5 {[%clk 0:01:00]} 30. Qh8+ {[%clk 0:00:15]}  Ke7 {[%clk 0:01:00]} 31. f5 {[%clk 0:00:16]}  Nf6 {[%clk 0:00:47]} 32. Qxg7 {[%clk 0:00:15]}  Rg8 {[%clk 0:00:47]} 33. Qxf6+ {[%clk 0:00:02]}  Kxf6 {[%clk 0:00:47]} 34. fxe6+ {[%clk 0:00:03]}  Kg6 {[%clk 0:00:42]} 35. exf7 {[%clk 0:00:01]}  Rf8 {[%clk 0:00:41]} 36. Re7 {[%clk 0:00:01]}  d3 {[%clk 0:00:41]} 37. Rd1 {[%clk 0:00:01]}  Rxf7 {[%clk 0:00:40]} 0-1


[Site "https://www.chess.com"]